{"text_format":"1","workbook":"xlsx","n_sheets":3,"sheets":["Dashboard","Bodega de datos","Tablas dinámicas"],"not_rendered":{"charts":4,"images":31,"macros":1,"external_links":1,"defined_names":1,"comments":0,"pivot_tables":15},"unopened":[],"bounds":{"document_bytes":16777216,"sheet_cells":100000,"rows_first":2000,"rows_last":500,"rows_between":2000,"halvings":0,"cell_chars":16384,"cell_head_chars":4096},"cells_cut":0,"cells_raw":0,"read":"whole","date_system":"1900"}

{"sheet":"Dashboard","index":0,"n_rows":49,"n_cols":21,"rows_kept":49,"cut":false,"hidden":false,"merged":[[48,20,49,23]]}
[]
[]
[]
[]
[]
[]
[]
[]
[]
[]
[]
[]
[]
[]
[]
[]
[]
[]
[]
[]
[]
[]
[]
[]
[]
[]
[]
[]
[]
[]
[]
[]
[]
[]
[]
[]
[]
[]
[]
[]
[]
[]
[]
[]
[]
[]
[]
[]
[null,null,null,null,null,null,null,null,null,null,null,null,null,null,null,null,null,null,null,null,"Actualizar base de datos"]

{"sheet":"Bodega de datos","index":1,"n_rows":16,"n_cols":46,"rows_kept":16,"cut":false,"hidden":false,"merged":[[1,34,1,44],[1,1,1,9],[1,12,1,22],[1,24,1,33],[0,1,0,2]]}
[null,"Actualizar tabla "]
[null,"Canal de atención a la ciudadanía",null,null,null,null,null,null,null,null,null,null,"Entidad destinataria de la pqrsd que se está trasladando",null,null,null,null,null,null,null,null,null,null,null,"Tipología de las pqrs pendientes de trámite",null,null,null,null,null,null,null,null,null,"PQRSD pendientes de trámite por dependencia del DADEP"]
["Mes","Presencial","Telefónico","Redes sociales","Chat","ChatBot Alameda","Correo electrónico","Ventanilla de radicación","Buzón de sugerencias","Bogotá te escucha","Pqrs recibidas","Pqrs trasladadas","Secretaría de Movilidad","Secretaría de Desarrollo Económico","Secretaría de Gobierno","Secretaría de Ambiente","Secretaría de Habitat","Instituto para la Economía Social - IPES","Instituto Distrital de Recreación y Deporte -IDRD","Instituto Distrital de Participación y Acción Comunal - IDPAC","Secretaría de Planeación","IDU","Otra entidad destinataria","Pqrs pendientes de trámite al final de cada mes","derecho de petición de interés particular","derecho de petición de interés general","reclamo","queja","solicitud de acceso a la información","consulta","felicitación","solicitud de copias","sugerencias","denuncia por actos de corrupción","Dirección","Subdirección de Registro Inmobiliario","Subdirección de Gestión Inmobiliaria y de Espacio Público","Subdirección de Gestión Corporativa","Oficina de  Control Disciplinario Interno","Oficina Jurídica","Oficina Asesora de Planeación","Oficina Asesora de Comunicaciones ","Atención a la ciudadanía","Control Interno","total","Columna1"]
["enero",79,185,5,41,null,1268,3,0,357,357,258,30,0,151,3,0,15,4,1,6,7,41,13,7,1,1,4,0,0,0,0,0,0,0,2,2,2,0,0,0,0,7,0,{"$f":"+Tabla1[[#This Row],[Dirección]]+Tabla1[[#This Row],[Subdirección de Registro Inmobiliario]]+Tabla1[[#This Row],[Subdirección de Gestión Inmobiliaria y de Espacio Público]]+Tabla1[[#This Row],[Oficina de  Control Disciplinario Interno]]+Tabla1[[#This Row],[Oficina Jurídica]]+Tabla1[[#This Row],[Oficina Asesora de Planeación]]+Tabla1[[#This Row],[Oficina Asesora de Comunicaciones ]]+Tabla1[[#This Row],[Control Interno]]+Tabla1[[#This Row],[Atención a la ciudadanía]]+Tabla1[[#This Row],[Subdirección de Gestión Corporativa]]","v":13},{"$f":"+Tabla1[[#This Row],[Pqrs pendientes de trámite al final de cada mes]]","v":13}]
["febrero",223,213,10,36,null,1277,4,0,466,466,322,36,0,191,3,0,32,10,1,1,14,34,32,13,10,0,3,0,5,0,0,0,1,0,0,22,0,1,2,0,0,7,0,{"$f":"+Tabla1[[#This Row],[Dirección]]+Tabla1[[#This Row],[Subdirección de Registro Inmobiliario]]+Tabla1[[#This Row],[Subdirección de Gestión Inmobiliaria y de Espacio Público]]+Tabla1[[#This Row],[Oficina de  Control Disciplinario Interno]]+Tabla1[[#This Row],[Oficina Jurídica]]+Tabla1[[#This Row],[Oficina Asesora de Planeación]]+Tabla1[[#This Row],[Oficina Asesora de Comunicaciones ]]+Tabla1[[#This Row],[Control Interno]]+Tabla1[[#This Row],[Atención a la ciudadanía]]+Tabla1[[#This Row],[Subdirección de Gestión Corporativa]]","v":32},{"$f":"+Tabla1[[#This Row],[Pqrs pendientes de trámite al final de cada mes]]","v":32}]
["marzo",102,180,10,27,null,1219,8,0,391,391,274,2,1,168,7,1,47,6,1,0,13,28,56,13,24,1,4,0,7,0,0,1,6,0,2,34,0,6,0,0,0,14,0,{"$f":"+[1]!Tabla1[[#This Row],[Dirección]]+[1]!Tabla1[[#This Row],[Subdirección de Registro Inmobiliario]]+[1]!Tabla1[[#This Row],[Subdirección de Gestión Inmobiliaria y de Espacio Público]]+[1]!Tabla1[[#This Row],[Oficina de  Control Disciplinario Interno]]+[1]!Tabla1[[#This Row],[Oficina Jurídica]]+[1]!Tabla1[[#This Row],[Oficina Asesora de Planeación]]+[1]!Tabla1[[#This Row],[Oficina Asesora de Comunicaciones ]]+[1]!Tabla1[[#This Row],[Control Interno]]+[1]!Tabla1[[#This Row],[Atención a la ciudadanía]]+[1]!Tabla1[[#This Row],[Subdirección de Gestión Corporativa]]","v":{"$error":"#REF!"}},{"$f":"SUM([1]!Tabla1[[#This Row],[derecho de petición de interés particular]:[denuncia por actos de corrupción]])","v":{"$error":"#REF!"}}]
["abril",137,222,10,39,38,1488,3,0,445,445,337,7,2,203,6,0,52,12,1,0,13,41,27,8,11,1,0,0,5,0,0,1,1,0,5,14,0,1,0,0,0,7,0,{"$f":"+Tabla1[[#This Row],[Dirección]]+Tabla1[[#This Row],[Subdirección de Registro Inmobiliario]]+Tabla1[[#This Row],[Subdirección de Gestión Inmobiliaria y de Espacio Público]]+Tabla1[[#This Row],[Oficina de  Control Disciplinario Interno]]+Tabla1[[#This Row],[Oficina Jurídica]]+Tabla1[[#This Row],[Oficina Asesora de Planeación]]+Tabla1[[#This Row],[Oficina Asesora de Comunicaciones ]]+Tabla1[[#This Row],[Control Interno]]+Tabla1[[#This Row],[Atención a la ciudadanía]]+Tabla1[[#This Row],[Subdirección de Gestión Corporativa]]","v":27},{"$f":"+Tabla1[[#This Row],[Pqrs pendientes de trámite al final de cada mes]]","v":27}]
["mayo",null,null,null,null,null,null,null,null,null,null,null,null,null,null,null,null,null,null,null,null,null,null,null,null,null,null,null,null,null,null,null,null,null,null,null,null,null,null,null,null,null,null,null,{"$f":"+Tabla1[[#This Row],[Dirección]]+Tabla1[[#This Row],[Subdirección de Registro Inmobiliario]]+Tabla1[[#This Row],[Subdirección de Gestión Inmobiliaria y de Espacio Público]]+Tabla1[[#This Row],[Oficina de  Control Disciplinario Interno]]+Tabla1[[#This Row],[Oficina Jurídica]]+Tabla1[[#This Row],[Oficina Asesora de Planeación]]+Tabla1[[#This Row],[Oficina Asesora de Comunicaciones ]]+Tabla1[[#This Row],[Control Interno]]+Tabla1[[#This Row],[Atención a la ciudadanía]]+Tabla1[[#This Row],[Subdirección de Gestión Corporativa]]","v":0},{"$f":"+Tabla1[[#This Row],[Pqrs pendientes de trámite al final de cada mes]]","v":0}]
["junio",null,null,null,null,null,null,null,null,null,null,null,null,null,null,null,null,null,null,null,null,null,null,null,null,null,null,null,null,null,null,null,null,null,null,null,null,null,null,null,null,null,null,null,{"$f":"+Tabla1[[#This Row],[Dirección]]+Tabla1[[#This Row],[Subdirección de Registro Inmobiliario]]+Tabla1[[#This Row],[Subdirección de Gestión Inmobiliaria y de Espacio Público]]+Tabla1[[#This Row],[Oficina de  Control Disciplinario Interno]]+Tabla1[[#This Row],[Oficina Jurídica]]+Tabla1[[#This Row],[Oficina Asesora de Planeación]]+Tabla1[[#This Row],[Oficina Asesora de Comunicaciones ]]+Tabla1[[#This Row],[Control Interno]]+Tabla1[[#This Row],[Atención a la ciudadanía]]+Tabla1[[#This Row],[Subdirección de Gestión Corporativa]]","v":0},{"$f":"+Tabla1[[#This Row],[Pqrs pendientes de trámite al final de cada mes]]","v":0}]
["julio",null,null,null,null,null,null,null,null,null,null,null,null,null,null,null,null,null,null,null,null,null,null,null,null,null,null,null,null,null,null,null,null,null,null,null,null,null,null,null,null,null,null,null,{"$f":"+Tabla1[[#This Row],[Dirección]]+Tabla1[[#This Row],[Subdirección de Registro Inmobiliario]]+Tabla1[[#This Row],[Subdirección de Gestión Inmobiliaria y de Espacio Público]]+Tabla1[[#This Row],[Oficina de  Control Disciplinario Interno]]+Tabla1[[#This Row],[Oficina Jurídica]]+Tabla1[[#This Row],[Oficina Asesora de Planeación]]+Tabla1[[#This Row],[Oficina Asesora de Comunicaciones ]]+Tabla1[[#This Row],[Control Interno]]+Tabla1[[#This Row],[Atención a la ciudadanía]]+Tabla1[[#This Row],[Subdirección de Gestión Corporativa]]","v":0},{"$f":"+Tabla1[[#This Row],[Pqrs pendientes de trámite al final de cada mes]]","v":0}]
["agosto",null,null,null,null,null,null,null,null,null,null,null,null,null,null,null,null,null,null,null,null,null,null,null,null,null,null,null,null,null,null,null,null,null,null,null,null,null,null,null,null,null,null,null,{"$f":"+Tabla1[[#This Row],[Dirección]]+Tabla1[[#This Row],[Subdirección de Registro Inmobiliario]]+Tabla1[[#This Row],[Subdirección de Gestión Inmobiliaria y de Espacio Público]]+Tabla1[[#This Row],[Oficina de  Control Disciplinario Interno]]+Tabla1[[#This Row],[Oficina Jurídica]]+Tabla1[[#This Row],[Oficina Asesora de Planeación]]+Tabla1[[#This Row],[Oficina Asesora de Comunicaciones ]]+Tabla1[[#This Row],[Control Interno]]+Tabla1[[#This Row],[Atención a la ciudadanía]]+Tabla1[[#This Row],[Subdirección de Gestión Corporativa]]","v":0},{"$f":"+Tabla1[[#This Row],[Pqrs pendientes de trámite al final de cada mes]]","v":0}]
["septiembre",null,null,null,null,null,null,null,null,null,null,null,null,null,null,null,null,null,null,null,null,null,null,null,null,null,null,null,null,null,null,null,null,null,null,null,null,null,null,null,null,null,null,null,{"$f":"+Tabla1[[#This Row],[Dirección]]+Tabla1[[#This Row],[Subdirección de Registro Inmobiliario]]+Tabla1[[#This Row],[Subdirección de Gestión Inmobiliaria y de Espacio Público]]+Tabla1[[#This Row],[Oficina de  Control Disciplinario Interno]]+Tabla1[[#This Row],[Oficina Jurídica]]+Tabla1[[#This Row],[Oficina Asesora de Planeación]]+Tabla1[[#This Row],[Oficina Asesora de Comunicaciones ]]+Tabla1[[#This Row],[Control Interno]]+Tabla1[[#This Row],[Atención a la ciudadanía]]+Tabla1[[#This Row],[Subdirección de Gestión Corporativa]]","v":0},{"$f":"+Tabla1[[#This Row],[Pqrs pendientes de trámite al final de cada mes]]","v":0}]
["octubre",null,null,null,null,null,null,null,null,null,null,null,null,null,null,null,null,null,null,null,null,null,null,null,null,null,null,null,null,null,null,null,null,null,null,null,null,null,null,null,null,null,null,null,{"$f":"+Tabla1[[#This Row],[Dirección]]+Tabla1[[#This Row],[Subdirección de Registro Inmobiliario]]+Tabla1[[#This Row],[Subdirección de Gestión Inmobiliaria y de Espacio Público]]+Tabla1[[#This Row],[Oficina de  Control Disciplinario Interno]]+Tabla1[[#This Row],[Oficina Jurídica]]+Tabla1[[#This Row],[Oficina Asesora de Planeación]]+Tabla1[[#This Row],[Oficina Asesora de Comunicaciones ]]+Tabla1[[#This Row],[Control Interno]]+Tabla1[[#This Row],[Atención a la ciudadanía]]+Tabla1[[#This Row],[Subdirección de Gestión Corporativa]]","v":0},{"$f":"+Tabla1[[#This Row],[Pqrs pendientes de trámite al final de cada mes]]","v":0}]
["noviembre",null,null,null,null,null,null,null,null,null,null,null,null,null,null,null,null,null,null,null,null,null,null,null,null,null,null,null,null,null,null,null,null,null,null,null,null,null,null,null,null,null,null,null,{"$f":"+Tabla1[[#This Row],[Dirección]]+Tabla1[[#This Row],[Subdirección de Registro Inmobiliario]]+Tabla1[[#This Row],[Subdirección de Gestión Inmobiliaria y de Espacio Público]]+Tabla1[[#This Row],[Oficina de  Control Disciplinario Interno]]+Tabla1[[#This Row],[Oficina Jurídica]]+Tabla1[[#This Row],[Oficina Asesora de Planeación]]+Tabla1[[#This Row],[Oficina Asesora de Comunicaciones ]]+Tabla1[[#This Row],[Control Interno]]+Tabla1[[#This Row],[Atención a la ciudadanía]]+Tabla1[[#This Row],[Subdirección de Gestión Corporativa]]","v":0},{"$f":"+Tabla1[[#This Row],[Pqrs pendientes de trámite al final de cada mes]]","v":0}]
["diciembre",null,null,null,null,null,null,null,null,null,null,null,null,null,null,null,null,null,null,null,null,null,null,null,null,null,null,null,null,null,null,null,null,null,null,null,null,null,null,null,null,null,null,null,{"$f":"+Tabla1[[#This Row],[Dirección]]+Tabla1[[#This Row],[Subdirección de Registro Inmobiliario]]+Tabla1[[#This Row],[Subdirección de Gestión Inmobiliaria y de Espacio Público]]+Tabla1[[#This Row],[Oficina de  Control Disciplinario Interno]]+Tabla1[[#This Row],[Oficina Jurídica]]+Tabla1[[#This Row],[Oficina Asesora de Planeación]]+Tabla1[[#This Row],[Oficina Asesora de Comunicaciones ]]+Tabla1[[#This Row],[Control Interno]]+Tabla1[[#This Row],[Atención a la ciudadanía]]+Tabla1[[#This Row],[Subdirección de Gestión Corporativa]]","v":0},{"$f":"+Tabla1[[#This Row],[Pqrs pendientes de trámite al final de cada mes]]","v":0}]
["Acumulado año",{"$f":"+B4+B5+B6+B7+B8+B9+B10+B11+B12+B13+B14+B15","v":541},{"$f":"+C4+C5+C6+C7+C8+C9+C10+C11+C12+C13+C14+C15","v":800},35,143,null,5252,18,0,{"$f":"+J4+J5+J6+J7+J8+J9+J10+J11+J12+J13+J14+J15","v":1659},{"$f":"+K15+K14+K13+K12+K11+K10+K9+K7+K8+K6+K5+K4","v":1659},{"$f":"+L15+L14+L13+L12+L11+L10+L9+L8+L7+L6+L5+L4","v":1191},75,3,713,19,1,146,32,4,null,null,144,128,41,46,3,11,0,17,0,0,2,8,0,9,72,2,8,2,0,0,35,0,{"$f":"+AS15+AS14+AS13+AS12+AS11+AS10+AS9+AS8+AS7+AS6+AS5+AS4","v":{"$error":"#REF!"}},{"$f":"+Tabla1[[#This Row],[Pqrs pendientes de trámite al final de cada mes]]","v":128}]

{"sheet":"Tablas dinámicas","index":2,"n_rows":109,"n_cols":14,"rows_kept":109,"cut":false,"hidden":false,"merged":[[0,6,2,9],[0,1,1,4],[2,1,2,4]]}
[null,"Regresar "]
[]
[null,"al Dashboard"]
["Cantidad de atenciones brindadas a la ciudadanía por canal"]
[]
["Etiquetas de fila","Suma de Presencial",null,"Etiquetas de fila","Suma de Telefónico",null,"Etiquetas de fila","Suma de Redes sociales",null,"Etiquetas de fila","Suma de Chat",null,"Etiquetas de fila","Suma de ChatBot Alameda"]
["abril",137,null,"abril",222,null,"abril",10,null,"abril",39,null,"abril",38]
["Total general",137,null,"Total general",222,null,"Total general",10,null,"Total general",39,null,"Total general",38]
[]
[]
[]
[]
[]
[]
[]
[]
[]
[]
[]
[]
[null,{"$f":"+GETPIVOTDATA(\"Presencial\",$A$6)","v":137}]
[]
["Etiquetas de fila","Suma de Correo electrónico",null,"Etiquetas de fila","Suma de Ventanilla de radicación",null,"Etiquetas de fila","Suma de Buzón de sugerencias",null,"Etiquetas de fila","Suma de Bogotá te escucha"]
["abril",1488,null,"abril",3,null,"abril",0,null,"abril",445]
["Total general",1488,null,"Total general",3,null,"Total general",0,null,"Total general",445]
[]
[]
[]
[]
[]
[]
[]
[]
[]
[]
[]
[]
[]
[]
["Cantidad de PQRS recibidas y trasladadas"]
[]
["Etiquetas de fila","Suma de Pqrs recibidas",null,"Etiquetas de fila","Suma de Pqrs trasladadas",null,null,"Etiquetas de columna"]
["abril",445,null,"abril",337,null,"Valores","abril","Total general"]
["Total general",445,null,"Total general",337,null,"Secretaría de Movilidad.",7,7]
[null,null,null,null,null,null,"Secretaría de Desarrollo Económico.",2,2]
[null,null,null,null,null,null,"Secretaría de Gobierno.",203,203]
[null,null,null,null,null,null,"Secretaría de Ambiente.",6,6]
[null,null,null,null,null,null,"Recreación y Deporte -IDRD.",12,12]
[null,null,null,null,null,null,"Participación y Acción Comunal - IDPAC.",1,1]
[null,null,null,null,null,null,"Instituto para la Economía Social - IPES.",52,52]
[null,null,null,null,null,null,"Suma de Secretaría de Habitat",0,0]
[null,null,null,null,null,null,"Suma de Secretaría de Planeación",0,0]
[null,null,null,null,null,null,"Suma de Otra entidad destinataria",41,41]
[null,null,null,null,null,null,"Suma de IDU",13,13]
[]
[]
[]
[]
["Cantidad de PQRSD por tipología pendientes de trámite"]
[]
[null,"Etiquetas de columna"]
["Valores","abril","Total general"]
["Derecho de petición de interés particular.",8,8]
["Derecho de petición de interés general.",11,11]
["Reclamo.",1,1]
["Queja.",0,0]
["Solicitud de acceso a la información.",0,0]
["Consulta.",5,5]
["Felicitación.",0,0]
["Solicitud de copias.",0,0]
["Sugerencias.",1,1]
["Denuncia por actos de corrupción.",1,1]
[]
[]
["PQRSD pendientes de trámite al final del mes"]
[]
["Etiquetas de fila","Pqrs pendientes de trámite al final de cada mes."]
["abril",27]
["Total general",27]
[]
[]
[]
[]
[]
[]
[]
[]
[]
[]
[]
[]
[]
[]
[]
[]
[]
[]
[]
[]
[]
[]
[]
[]
[]
[]
[]
[]
["Etiquetas de columna"]
["abril","Total general"]